Cogmind - Beta 13 @@@ ROGUE MODE // 2024.04.09 @ 02:40:04 Player: glitchbuggaming Result: Destroyed by Y-45 Defender with Heavy Assault Rifle Performance ------------- Evolutions (1) 500 Regions Visited (2) 400 Robots Destroyed (14) 70 Value Destroyed (295) 295 Prototype IDs (1) 20 Alien Tech Used (0) 0 Bonus (0) 0 TOTAL SCORE: 1285 Bonus ------- None Cogmind --------- Core Integrity 0/400 Matter 289/300 Energy 100/100 System Corruption 0% Temperature Cool (0) Movement Walking (260) Ox2 Location -9/Materials Parts ------- > --- POWER (1) -------- (None) > --- PROPULSION (3) --- Aluminum Leg > --- UTILITY (2) ------ Large Storage Unit Hardened Light Armor Plating > --- WEAPON (3) ------- (None) > --- INVENTORY (15) --- Ion Engine Heat Sink Hardened Light Armor Plating Hardened Light Armor Plating Peak State ------------ > --- POWER ------------ Ion Engine > --- PROPULSION ------- Light Treads Light Treads > --- UTILITY ---------- Large Storage Unit Hardened Light Armor Plating > --- WEAPON ----------- Small Laser Advanced Beam Cannon Light Assault Rifle > --- INVENTORY -------- Ion Engine Ion Engine Aluminum Leg Heat Sink Hardened Light Armor Plating Hardened Light Armor Plating Hardened Light Armor Plating EM Pulse Gun [Rating: 12] Favorites ----------- Power Ion Engine Engine Ion Engine Propulsion Light Treads Treads Light Treads Leg Aluminum Leg Utility Hardened Light Armor Plating Storage Large Storage Unit Protection Hardened Light Armor Plating Weapon Small Laser Energy Gun Small Laser Energy Cannon Advanced Beam Cannon Ballistic Gun Light Assault Rifle Build | -11 -10 -9 ------- Run | Yrd Mat Mat Slots Evolved 2 | . . 2 Power . | . . . Propulsion 1 | . . 1 Utility . | . . . Weapon 1 | . . 1 Parts Attached 18 | 1 7 10 Power 3 | . 1 2 Engine 3 | . 1 2 Core . | . . . Reactor . | . . . Propulsion 4 | . 2 2 Treads 3 | . 2 1 Leg 1 | . . 1 Wheel . | . . . Hover . | . . . Flight . | . . . Utility 7 | . 3 4 Device . | . . . Storage 3 | . 1 2 Processor . | . . . Hackware . | . . . Protection 4 | . 2 2 Artifact . | . . . Weapon 4 | 1 1 2 Energy Gun 2 | 1 . 1 Energy Cannon 1 | . 1 . Ballistic Gun 1 | . . 1 Ballistic Cannon . | . . . Launcher . | . . . Special Weapon . | . . . Impact Weapon . | . . . Slashing Weapon . | . . . Piercing Weapon . | . . . Special Melee Weapon . | . . . Unidentified Prototypes 1 | . 1 . Parts Lost 11 | . 1 10 Power 3 | . 1 2 Propulsion 3 | . . 3 Utility 1 | . . 1 Weapon 4 | . . 4 Highest Loss Streak 7 | . 1 7 To Critical Strikes . | . . . Average Slot Usage (%) 71 | . 61 76 Engine 5 | . . 7 Treads 22 | . 14 26 Storage 9 | . 5 10 Protection 13 | . 20 10 Energy Gun 11 | . 14 9 Energy Cannon 8 | . 5 9 Naked Turns . | . . . Heaviest Build 36 | 1 15 36 Greatest Support 60 | 3 40 60 Greatest Overweight (x) 8 | . 3 8 Average Overweight (x) . | . . . Largest Inventory Capacity 15 | 5 5 15 Average Capacity 9 | 5 5 11 Most Carried 9 | 2 5 9 Average Carried 4 | . 4 4 Final Capacity 15 | 5 5 15 Final Carried 5 | 1 5 4 Class Distribution -------------------- 97% | Mutant Dominant Class ---------------- Mutant | -10/Materials Mutant | -9/Materials Resources | -11 -10 -9 ----------- Run | Yrd Mat Mat Matter Collected 316 | 111 27 178 Remotely . | . . . Salvage Created 383 | . 45 338 Parts 28 | . 8 20 Haulers Intercepted . | . . . Recyclers Shooed 2 | . . 2 Parts Field Recycled . | . . . Retrieved Matter . | . . . Parts Self-Destructed . | . . . Prevented . | . . . Kills | -11 -10 -9 ------- Run | Yrd Mat Mat Combat Hostiles Destroyed 12 | . 3 9 Guns 2 | . . 2 Cannons 9 | . 3 6 AOE 1 | . . 1 Classes Destroyed 5 | . 1 4 Tunneler 1 | . . 1 Mechanic 1 | . . 1 Swarmer 6 | . 3 3 Grunt 5 | . . 5 Sentry 1 | . . 1 Best Kill Streak 4 | . 3 4 Combat Bots Only 3 | . 3 3 Max Kills in Single Turn 2 | . 1 2 Gunslinging . | . . . Exploded 1 | . . 1 Melee . | . . . Uniques/NPCs Destroyed . | . . . Combat | -11 -10 -9 -------- Run | Yrd Mat Mat Hostile Shots Fired 252 | . 65 187 Missed 68 | . 21 47 Damage Taken 1906 | . 415 1491 Core 446 | . 43 403 Absorbed by Shields . | . . . Core Remaining (%) 91 | 100 82 . Volleys Fired 50 | . 7 43 Largest 2 | . 2 2 Hottest 108 | . 108 108 Shots Fired 69 | . 14 55 Gun 37 | . 7 30 Cannon 32 | . 7 25 Launcher . | . . . Special . | . . . Kinetic 12 | . . 12 Thermal 51 | . 14 37 Explosive . | . . . Electromagnetic 6 | . . 6 Robot Hit Streak 5 | . 2 5 Robot Miss Streak 4 | . 3 4 Penetration Max . | . . . Secondary Targets . | . . . Shots Hit Robots 33 | . 4 29 Core Hits 20 | . 3 17 Critical Kills . | . . . Critical Parts Destroyed . | . . . Critical Strikes . | . . . Melee Attacks . | . . . Impact . | . . . Slashing . | . . . Piercing . | . . . Sneak Attacks . | . . . Combat Hostiles . | . . . Follow-up Attacks . | . . . Damage Inflicted 696 | . 105 591 Guns 194 | . 23 171 Cannons 370 | . 81 289 Explosions 109 | . . 109 Melee . | . . . Ramming 23 | . 1 22 Kinetic 49 | . . 49 Thermal 591 | . 104 487 Explosive . | . . . Electromagnetic 33 | . . 33 Impact . | . . . Slashing . | . . . Piercing . | . . . Highest Corruption . | . . . Average Corruption . | . . . Corruption Purged . | . . . Corruption Blocked . | . . . Overload Shots . | . . . Overflow Damage . | . . . Projectiles . | . . . Explosions . | . . . Melee . | . . . Knockbacks . | . . . Impact . | . . . Kinetic . | . . . Secondary . | . . . Self-Inflicted Damage . | . . . Shots . | . . . Rammed 6 | . 2 4 Targets Rammed 7 | . 2 5 Kicked 1 | . . 1 Crushed . | . . . Highest Temperature 300 | . 166 300 Average Temperature 82 | . 59 89 Received Heat Transfer 504 | . 108 396 Effects 2 | . . 2 Interference 2 | . . 2 Siege Activations . | . . . Robots Corrupted . | . . . Combat Hostiles . | . . . Parts Fried . | . . . Impact Corruptions . | . . . Robots Melted . | . . . Combat Hostiles . | . . . Parts Melted 2 | . . 2 Heat Transferred 1066 | . 198 868 Parts Sabotaged . | . . . Parts Stolen . | . . . Parts Stripped . | . . . Power Chain Reactions 1 | . . 1 Alert | -11 -10 -9 ------- Run | Yrd Mat Mat Peak Influence 136 | . 85 136 Initial 31 | . . 31 Average 52 | . 16 70 Maximum Alert Level . | . . . Low Security (%) 100 | 100 100 100 Level 1 . | . . . Level 2 . | . . . Level 3 . | . . . Level 4 . | . . . Level 5 . | . . . High Security . | . . . Max Security . | . . . Squads Dispatched 4 | . 1 3 Investigation 1 | . . 1 Extermination . | . . . Reinforcement 3 | . 1 2 Assault . | . . . Garrison . | . . . Intercept . | . . . Searches Triggered . | . . . Construction Impeded . | . . . Haulers Reinforced . | . . . Active Scanning Responses . | . . . Cargo Convoy Interrupts . | . . . Stealth | -11 -10 -9 --------- Run | Yrd Mat Mat Distress Signals 2 | . 1 1 Communications Jammed . | . . . Distress Signals . | . . . Times Spotted 31 | . 8 23 Peak Tracking Total 8 | . 5 8 Tactical Retreats . | . . . Traps | -11 -10 -9 ------- Run | Yrd Mat Mat Traps Triggered . | . . . Indirectly . | . . . Trap Hack Attempts . | . . . Triggered . | . . . Disarmed . | . . . Reprogrammed . | . . . Reused . | . . . Traps Extracted . | . . . Installed . | . . . Triggered . | . . . Machines | -11 -10 -9 ---------- Run | Yrd Mat Mat Machines Disabled . | . . . Max in Single Turn . | . . . Machines Repaired . | . . . Machines Dismantled . | . . . Machines Sabotaged . | . . . Overloaded Fab Kills . | . . . Hacking | -11 -10 -9 --------- Run | Yrd Mat Mat Machines Accessed 3 | . . 3 Terminals 3 | . . 3 Fabricators . | . . . Repair Stations . | . . . Recycling Units . | . . . Scanalyzers . | . . . Garrison Access . | . . . Total Hacks 6 | . . 6 Successful 1 | . . 1 Failed 5 | . . 5 Catastrophic 2 | . . 2 Database Lockouts . | . . . Manual 2 | . . 2 Terminals 6 | . . 6 Fabricators . | . . . Repair Stations . | . . . Recycling Units . | . . . Scanalyzers . | . . . Garrison Access . | . . . Terminal Hacks 1 | . . 1 Recall Investigation 1 | . . 1 Fabricator Hacks . | . . . Repair Station Hacks . | . . . Recycling Unit Hacks . | . . . Scanalyzer . | . . . Garrison Access Hacks . | . . . Unauthorized Hacks . | . . . Terminals . | . . . Fabricators . | . . . Repair Stations . | . . . Recycling Units . | . . . Scanalyzers . | . . . Garrison Access . | . . . Data Cores Recovered . | . . . Used . | . . . Hacking Detections 3 | . . 3 Full Trace Events 1 | . . 1 Feedback Events . | . . . Feedback Blocked . | . . . Robot Schematics Acquired . | . . . Robots Built . | . . . Authchips . | . . . Time . | . . . Total Robot Build Rating . | . . . Part Schematics Acquired . | . . . Parts Built . | . . . Authchips . | . . . Time . | . . . Total Part Build Rating . | . . . Parts Repaired . | . . . Time . | . . . Parts Recycled . | . . . Recycled Matter . | . . . Retrieved Matter . | . . . Retrieved Components . | . . . Parts Scanalyzed . | . . . Part Schematics Acquired . | . . . Parts Damaged . | . . . Bothacking | -11 -10 -9 ------------ Run | Yrd Mat Mat Used RIF Installer . | . . . Robots Hacked . | . . . Non-combat . | . . . Combat . | . . . Robot Hacks Applied . | . . . Relay Couplers Released . | . . . Fabnet Peak Effective % . | . . . Robots Rewired . | . . . Allies Hacked . | . . . Hacks Repelled . | . . . Allies | -11 -10 -9 -------- Run | Yrd Mat Mat Total Allies . | . . . Largest Group . | . . . Highest-Rated Group . | . . . Highest-Rated Ally . | . . . Total Orders . | . . . Ally Attacks . | . . . Total Damage . | . . . Kills . | . . . Allies Corrupted . | . . . Allies Melted . | . . . Intel | -11 -10 -9 ------- Run | Yrd Mat Mat Robot Analysis Total . | . . . Derelict Logs Recovered . | . . . Drone Launches . | . . . Drone Recoveries . | . . . Exploration | -11 -10 -9 ------------- Run | Yrd Mat Mat Turns Passed 1262 | 26 386 850 Spaces Moved 714 | 47 233 434 Core 173 | 47 123 3 Treads 522 | . 110 412 Legs 19 | . . 19 Wheels . | . . . Hover . | . . . Flight . | . . . Fastest Speed 50 | 50 50 160 Average Speed 153 | 50 148 167 Slowest Speed 450 | 50 200 450 Overloaded Moves . | . . . Propulsion Burnouts . | . . . Robots Hopped . | . . . Cave-ins Triggered . | . . . Exploration Rate (%) 16 | 3 22 25 Regions Visited 2 Branch Regions . Pre-discovered Areas . | . . . Known Exits Taken . | . . . Unknown Exits Taken 2 | 1 1 . Scrap Searched . | . . . Spaces Dug . | . . . Terrain Destroyed 2 | . . 2 Melee . | . . . Projectile . | . . . AOE 2 | . . 2 Terrain Rammed . | . . . Walls Destroyed . | . . . Machines Disabled . | . . . Actions | -11 -10 -9 --------- Run | Yrd Mat Mat Total 807 | 49 256 502 Wait . | . . . Move 712 | 46 232 434 Hop . | . . . Pick Up 17 | 2 7 8 Fast Attach 4 | . 4 . Attach 12 | 1 2 9 Detach . | . . . Swap 2 | . 1 1 Drop 3 | . 1 2 Fire 50 | . 7 43 Melee . | . . . Ram 1 | . 1 . Kick 1 | . . 1 Crush 5 | . 1 4 Escape Stasis . | . . . Rewire . | . . . Trap . | . . . Miscellaneous . | . . . Route ------- -11/Scrapyard -10/Materials -9/Materials (discovered 1 exit: [*Min]) History --------- Turn | Location | Event 9 | -11/Scrapyard | Discovered new exit (range 14) 27 | -11/Scrapyard | Entered Materials 275 | -10/Materials | Discovered new exit (range 11) 301 | -10/Materials | Build established: Mutant 413 | -10/Materials | Entered another Materials area 413 | -9/Materials | Evolved 2 slots: Propulsion x1, Weapon x1 1141 | -9/Materials | Discovered new exit (range 14) 1191 | -9/Materials | Core integrity fell below 50% 1212 | -9/Materials | Core integrity fell below 20% 1219 | -9/Materials | Lost 7 parts (1p2n1u3w) 1263 | -9/Materials | Destroyed by Y-45 Defender with Heavy Assault Rifle Last Messages --------------- 01204_ M-13 Machinist destroyed. 01204_ Destroyed Flight Unit. 01204_ S-10 Pest destroyed. 01205_ R-06 Scavenger collects Flight Unit. 01205_ S-10 Pest destroyed. 01207_ U-05 Engineer lays Concrete. 01208_ S-10 Pest destroyed. 01208_ U-05 Engineer lays Concrete. 01209_ R-06 Scavenger collects Lgt. Assault Rifle. 01210_ U-05 Engineer lays Concrete. 01212_ Kicked U-05 Engineer. 01213_ U-05 Engineer lays Concrete. 01217_ Critical hit (Burn: +37). 01217_ U-05 Engineer lays Concrete. 01220_ U-05 Engineer builds a Wall. 01222_ Acquired 15 matter. 01222_ U-05 Engineer builds a Wall. 01224_ EM Pulse Gun destroyed. 01229_ Ion Engine destroyed. 01233_ K-01 Serf collects debris. Map ----- +----------------------------------------------------+ | ??????????????????????????????# #### ###???????? | | ???????????????????????????" # #???????? | | ??????????????????????????"" + + ??????? | | ???????????????????#???? # """ # ""????? | | ???????????????????# ?????????# """ ##?""" ??? | | ?????????????????? # ?????????# """ #??? ??? | | ?????????????????? + ????????# #????##??? | | ???????????????????# ????????# #????????? | | ???????????????????# ???????# """ %#????????? | | ??????????????? # ######## """ % #????????? | | ???????????????? + """% #????????? | | ???????????????????# #????????? | | ???????????????????# ##???????? | | ?????????????????????#### [ T#???????? | | ????????????????????????# % [[ #### ? | | ????????????????????????# ![ [[ ^^ ? | | ????????????????????? + =%* ^^ < ? | | ??????????????????""" # ^^ ? | | ?????????????????? ?# Y############+### # | | ???????????????? """ ??# #####??????? ?? ## | | ??????????????????"""???# #????????????" #?? #? | | ???????????????????"????+ #????????????" #??? #? | | ????????????????????????# #??????????????#????#? | | ????????????????????????# #????????????????????? | | ???????????????????## ### #????????????????????? | | ???????????????????# @ +????????????????????? | | ???????????????????# #????????????????????? | | ??????????????? #????????????????????? | | ??????????????#######+#######????????????????????? | | ?????????????????????????????????????????????????? | | ?????????????????????????????????????????????????? | | ?????????????????????????????????????????????????? | | ?????????????????????????????????????????????????? | | ?????????????????????????????????????????????????? | | ?????????????????????????????????????????????????? | | ?????????????????????????????????????????????????? | | ?????????????????????????????????????????????????? | | ?????????????????????????????????????????????????? | | ?????????????????????????????????????????????????? | | ?????????????????????????????????????????????????? | | ?????????????????????????????????????????????????? | | ?????????????????????????????????????????????????? | | ?????????????????????????????????????????????????? | | ?????????????????????????????????????????????????? | | ?????????????????????????????????????????????????? | | | | | | | | | | | +----------------------------------------------------+ Best States ------------- Heat Dissipation 28 Energy Generation 10 Energy Capacity 400 Matter Stores 300 Matter Capacity 300 Sight Range 16 Terrain Scan Density 10 Armor Coverage 300 Evasion (%) 50 Recoil Reduction 3 Item Schematics ----------------- None Robot Schematics ------------------ None Fabricated ------------ Nothing Alien Tech Used ----------------- None Achievements -------------- None Challenges ------------ None Game ------ Seed LargeAssaultMatrix Manual? 0 Play Time 00:15:39 Cumulative 4.1 hours Start 2024.04.09 @ 02:24:42 End 2024.04.09 @ 02:40:04 Sessions 1 Manual Loads 0 Difficulty Rogue Special Mode None Game No. 9 Rogue 9 Adventurer 0 Explorer 0 Win Type - Total 0 Types 0/0/0/0/0/0/0/0/0 Lore% 8 Gallery% 6 Achievement% 9 Wizard Run 0 Options --------- Layout 0 ASCII 0 Keyboard 0 Movement Arrows Keybinds 0 Fullscreen 1 Font 24/Smallcaps Map View 76x50 Zoom Use 0% Tactical HUD 1 Map Filters NONE Filters NONE Steam 1 RUN: 6102b415-48aa-4040-94fa-49f39e596644